bitfinex-derivatives/quotes_SOLF0:USTF0_20240913
["timestamp","ask_amount","ask_price","bid_price","bid_amount"]
[1726216734179,2.6185,134.31,134.26,3.3514]
[1726216734383,2.6185,134.31,134.27,11.43]
[1726216735480,14.0485,134.31,134.26,14.7814]
[1726216737778,14.0485,134.31,134.26,11.43]
[1726216738488,11.43,134.3,134.25,3.3516]
[1726216738681,11.43,134.3,134.24,340.32153425]
[1726216738893,11.43,134.3,134.25,11.43]
[1726216739387,11.43,134.3,134.25,14.7816]
[1726216740989,11.43,134.3,134.25,11.43]
[1726216742490,11.43,134.29,134.24,351.35930542]
[1726216744091,11.43,134.28,134.24,336.57740542]
[1726216749885,11.43,134.27,134.24,336.57740542]
[1726216752107,235.29559763,134.31,134.24,336.57740542]
[1726216752400,11.43,134.28,134.24,336.57740542]
[1726216752706,11.43,134.28,134.24,351.35930542]
[1726216755601,235.29559763,134.31,134.24,351.35930542]
[1726216755830,235.29559763,134.31,134.25,11.43]
[1726216755992,11.43,134.3,134.25,11.43]
[1726216756496,235.29559763,134.31,134.25,14.7817]
[1726216756695,11.43,134.3,134.25,14.7817]
[1726216757391,11.43,134.3,134.25,11.43]
[1726216757792,11.43,134.3,134.25,14.7816]
[1726216762898,11.43,134.3,134.26,3.3515]
[1726216763604,11.43,134.3,134.26,14.7815]
[1726216767208,246.72559763,134.31,134.26,14.7815]
[1726216767605,246.72559763,134.31,134.27,3.3512]
[1726216768710,246.72559763,134.31,134.26,14.7814]
[1726216769122,11.43,134.3,134.24,336.57740542]
[1726216769324,11.43,134.3,134.25,14.7816]
[1726216789739,11.43,134.27,134.24,336.57740542]
[1726216789935,11.43,134.26,134.24,336.57740542]
[1726216796945,15.12613836,134.27,134.24,336.57740542]
[1726216797252,11.43,134.27,134.24,336.57740542]
[1726216800254,3.75027718,134.28,134.24,336.57740542]
[1726216800463,11.43,134.28,134.24,336.57740542]
[1726216800751,15.10601013,134.28,134.24,336.57740542]
[1726216804053,3.67601013,134.28,134.24,336.57740542]
[1726216804246,11.43,134.28,134.24,336.57740542]
[1726216804452,15.22379752,134.28,134.24,336.57740542]
[1726216806157,3.78046425,134.3,134.24,351.35940542]
[1726216806359,11.43,134.29,134.24,351.35940542]
[1726216808859,3.78046425,134.3,134.24,351.35940542]
[1726216809056,11.43,134.29,134.24,351.35940542]
[1726216815956,11.43,134.29,134.24,339.92940542]
[1726216816153,11.43,134.29,134.25,11.43]
[1726216836679,11.43,134.29,134.24,336.57740542]
[1726216836872,11.43,134.26,134.24,336.57740542]
[1726216839672,15.08039135,134.28,134.24,336.57740542]
[1726216839883,11.43,134.28,134.24,336.57740542]
[1726216840383,11.43,134.29,134.24,351.35940542]
[1726216840575,11.43,134.29,134.25,11.43]
[1726216840768,235.29559763,134.31,134.25,11.43]
[1726216840975,11.43,134.3,134.25,14.7817]
[1726216841582,11.43,134.3,134.25,16.2171]
[1726216844386,11.43,134.3,134.25,12.8654]
[1726216844688,11.43,134.29,134.25,12.8654]
[1726216844876,239.03702577,134.31,134.25,12.8654]
[1726216845076,11.43,134.3,134.25,12.8654]
[1726216845282,11.43,134.3,134.25,1.4354]
[1726216845585,11.43,134.3,134.25,12.8654]
[1726216848185,11.43,134.29,134.25,12.8654]
[1726216852604,11.43,134.28,134.24,336.57740542]
[1726216854894,11.43,134.28,134.23,14.7821]
[1726216859189,239.03702577,134.31,134.24,3.3518]
[1726216859388,11.43,134.28,134.24,3.3518]
[1726216860293,11.43,134.28,134.24,14.7818]
[1726216862005,11.43,134.27,134.22,336.60385064]
[1726216862301,11.43,134.27,134.22,348.03385064]
[1726216862488,11.43,134.27,134.23,3.3522]
[1726216864995,11.43,134.28,134.23,3.3522]
[1726216866822,6.35992814,134.31,134.22,339.95625064]
[1726216867000,11.43,134.27,134.22,339.95625064]
[1726216867199,11.43,134.27,134.22,351.38625064]
[1726216872798,239.04651561,134.31,134.22,351.38625064]
[1726216873114,11.43,134.27,134.22,351.38625064]
[1726216877310,11.43,134.27,134.23,3.3522]
[1726216891422,11.43,134.27,134.22,348.03385064]
[1726216891423,11.43,134.27,134.22,351.38625064]
[1726216894522,239.04651561,134.31,134.23,3.352]
[1726216894820,11.43,134.27,134.23,3.352]
[1726216896927,239.04651561,134.31,134.23,3.352]
[1726216897117,11.43,134.27,134.23,3.352]
[1726216900821,11.43,134.27,134.22,351.38625064]
[1726216901026,11.43,134.27,134.22,339.95625064]
[1726216901348,11.43,134.26,134.22,339.95625064]
[1726216902912,11.43,134.26,134.21,4.6879]
[1726216903224,11.43,134.25,134.21,4.6879]
[1726216903528,11.43,134.25,134.22,3.3524]
[1726216907117,11.43,134.25,134.21,16.1179]
[1726216909214,11.43,134.25,134.21,4.6879]
[1726216924842,11.43,134.24,134.21,3.3526]
[1726216925043,1.3181,134.3,134.22,3.3524]
[1726216925246,11.43,134.26,134.22,3.3524]
[1726216939149,1.3181,134.3,134.22,3.3524]
[1726216939448,11.43,134.25,134.22,3.3524]
[1726216941859,11.43,134.26,134.22,3.3524]
[1726216952362,11.43,134.26,134.21,3.3526]
[1726216953354,11.43,134.26,134.22,3.3524]
[1726216954958,11.43,134.26,134.21,3.3526]
[1726216955267,11.43,134.24,134.2,340.43058866]
[1726216955763,11.43,134.24,134.2,343.78328866]
[1726216956908,11.43,134.24,134.21,3.3527]
[1726216958361,11.43,134.23,134.2,343.78348866]
[1726216958564,11.43,134.23,134.2,340.01503779]
[1726216981795,11.43,134.23,134.2,336.66213779]
[1726216982289,11.43,134.22,134.2,336.66213779]
[1726216985786,11.43,134.22,134.18,4.7374]
[1726216991397,11.43,134.21,134.18,4.7374]
[1726216992222,11.43,134.21,134.15,11.43]
[1726216992496,11.43,134.19,134.15,11.43]
[1726216992901,11.43,134.19,134.16,3.3539]
[1726217006913,11.43,134.19,134.17,3.3537]
[1726217007422,11.43,134.19,134.15,11.43]
[1726217008220,11.43,134.19,134.16,3.3538]
[1726217009218,11.43,134.19,134.17,3.3537]
[1726217016323,11.43,134.18,134.16,3.3539]
[1726217016537,11.43,134.18,134.14,1.3362]
[1726217016819,11.43,134.17,134.14,1.3362]
[1726217017024,11.43,134.18,134.14,1.3362]
[1726217017618,11.43,134.18,134.14,4.6905]
[1726217018222,232.84187886,134.21,134.14,4.6905]
[1726217018527,11.43,134.18,134.14,4.6905]
[1726217022126,11.43,134.18,134.14,3.3543]
[1726217022829,11.43,134.18,134.13,3.3546]
[1726217023730,11.43,134.18,134.14,3.3545]
[1726217026232,11.43,134.18,134.13,3.3546]
[1726217027331,11.43,134.16,134.13,3.3546]
[1726217029030,11.43,134.15,134.12,340.01494436]
[1726217030734,11.43,134.13,134.12,336.66004436]
[1726217030945,11.43,134.13,134.08,2.6413]
[1726217031127,11.43,134.13,134.09,11.43]
[1726217031332,11.43,134.12,134.08,11.43]
[1726217031840,11.43,134.12,134.08,15.2398532]
[1726217032030,11.43,134.12,134.09,3.3556]
[1726217032266,11.43,134.12,134.06,1.4125]
[1726217032437,11.43,134.11,134.07,11.43]
[1726217032632,11.43,134.11,134.08,3.3558]
[1726217032836,11.43,134.11,134.07,11.43]
[1726217033340,11.43,134.11,134.09,3.3557]
[1726217041038,11.43,134.11,134.07,11.43]
[1726217041039,11.43,134.11,134.08,3.3558]
[1726217042044,11.43,134.11,134.09,3.3557]
[1726217042441,11.43,134.11,134.07,11.43]
[1726217042844,11.43,134.11,134.07,15.19286796]
[1726217043944,11.43,134.11,134.09,3.3556]
[1726217044144,4.1305,134.17,134.08,11.43]
[1726217044445,11.43,134.13,134.08,11.43]
[1726217044641,11.43,134.13,134.1,3.3554]
[1726217055946,11.43,134.11,134.1,3.3554]
[1726217064753,11.43,134.11,134.07,3.3561]
[1726217064953,11.43,134.1,134.05,3.68927691]
[1726217065250,11.43,134.1,134.05,11.43]
[1726217065457,11.43,134.1,134.06,3.64786209]
[1726217066046,11.43,134.1,134.08,3.3558]
[1726217067551,11.43,134.1,134.09,3.3557]
[1726217067758,11.43,134.11,134.06,15.07786209]
[1726217068454,11.43,134.11,134.09,3.3557]
[1726217075966,11.43,134.12,134.1,3.3555]
[1726217076165,11.43,134.12,134.06,15.09391235]
[1726217076573,11.43,134.12,134.09,3.3556]
[1726217104775,11.43,134.12,134.06,3.66391235]
[1726217104984,11.43,134.12,134.05,12.8421]
[1726217105186,2.7189,134.13,134.06,3.82051343]
[1726217105379,11.43,134.11,134.05,12.8421]
[1726217105882,11.43,134.11,134.08,3.3558]
[1726217107793,11.43,134.11,134.09,3.3557]
[1726217108883,11.43,134.12,134.09,3.3557]
[1726217109085,1.3469,134.17,134.08,11.43]
[1726217109281,5.07124892,134.17,134.1,11.43]
[1726217109482,11.43,134.15,134.1,11.43]
[1726217109988,11.43,134.15,134.12,3.3548]
[1726217110176,11.43,134.17,134.11,11.43]
[1726217110591,11.43,134.17,134.14,3.3544]
[1726217112299,2.7178,134.18,134.14,14.7844]
[1726217112496,14.1478,134.18,134.14,3.3544]
[1726217120502,11.43,134.17,134.14,3.3544]
[1726217121615,11.43,134.17,134.13,3.3546]
[1726217122616,11.43,134.17,134.14,3.3545]
[1726217125717,11.43,134.17,134.13,3.3546]
[1726217126018,2.7178,134.18,134.11,11.43]
[1726217126019,11.43,134.16,134.11,11.43]
[1726217126408,11.43,134.16,134.12,3.3549]
[1726217128421,11.43,134.15,134.11,3.3551]
[1726217128815,11.43,134.15,134.1,11.43]
[1726217129014,11.43,134.15,134.1,14.7854]
[1726217129523,11.43,134.13,134.1,3.3554]
[1726217132625,11.43,134.13,134.09,340.26033453]
[1726217133424,11.43,134.13,134.1,3.3555]
[1726217136917,2.7178,134.18,134.11,3.3552]
[1726217137121,11.43,134.14,134.11,3.3552]
[1726217138821,11.43,134.14,134.1,14.7854]
[1726217141429,11.43,134.13,134.09,340.26033453]
[1726217147535,11.43,134.13,134.1,3.3555]
[1726217152368,11.43,134.13,134.09,340.26033453]
[1726217155536,11.43,134.13,134.1,3.3554]
[1726217159140,11.43,134.15,134.11,3.3551]
[1726217159646,11.43,134.15,134.12,3.355]
[1726217160138,11.43,134.15,134.11,3.3551]
[1726217160846,11.43,134.15,134.12,3.355]
[1726217161142,11.43,134.15,134.1,11.43]
[1726217161940,232.9299393,134.17,134.11,11.43]
[1726217162143,14.1478,134.18,134.14,3.3543]
[1726217162334,12.791,134.18,134.14,3.3543]
[1726217163246,11.43,134.16,134.13,3.3547]
[1726217171251,1.361,134.18,134.14,3.3544]
[1726217171450,11.43,134.17,134.14,3.3544]
[1726217171643,2.825,134.2,134.14,3.3544]
[1726217171844,6.63812942,134.2,134.14,3.3544]
[1726217172045,11.43,134.17,134.14,3.3544]
[1726217173853,11.43,134.17,134.13,3.3546]
[1726217175345,11.43,134.17,134.12,14.7848]
[1726217175845,11.43,134.17,134.12,11.43]
[1726217176045,8.05052942,134.2,134.13,3.3547]
[1726217176247,11.43,134.16,134.13,3.3547]
[1726217178660,11.43,134.16,134.14,3.3545]
[1726217179050,11.43,134.16,134.13,3.3546]
[1726217186066,11.37122565,134.16,134.13,3.3546]
[1726217186869,11.37122565,134.16,134.14,3.3544]
[1726217188863,11.37122565,134.16,134.13,3.3546]
[1726217189064,11.37122565,134.16,134.1,2.6608]
[1726217189270,11.37122565,134.16,134.11,11.43]
[1726217189569,11.37122565,134.16,134.12,3.3549]
[1726217190573,11.43,134.15,134.11,3.3552]
[1726217191472,8.05052942,134.2,134.12,3.3549]
[1726217191679,8.05052942,134.2,134.12,11.43]
[1726217191874,11.43,134.18,134.12,11.43]
[1726217192216,8.05052942,134.2,134.14,3.3545]
[1726217192390,8.05052942,134.2,134.14,11.43]
[1726217192590,2.825,134.2,134.16,11.43]
[1726217192782,14.255,134.2,134.16,14.7839]
[1726217193678,14.255,134.2,134.15,3.3541]
[1726217193975,11.43,134.19,134.15,3.3541]
[1726217195871,2.825,134.2,134.15,14.7841]
[1726217195872,14.255,134.2,134.15,14.7841]
[1726217198585,14.255,134.2,134.16,3.3539]
[1726217198785,14.255,134.2,134.15,11.43]
[1726217198978,14.255,134.2,134.15,14.7841]
[1726217201280,11.43,134.19,134.15,14.7841]
[1726217203280,11.43,134.19,134.15,11.43]
[1726217203988,11.43,134.19,134.15,14.7842]
[1726217205583,11.43,134.19,134.15,3.3542]
[1726217206583,11.43,134.19,134.14,14.7844]
[1726217207291,11.43,134.19,134.14,3.3544]
[1726217210489,11.43,134.17,134.13,14.7846]
[1726217211487,11.43,134.17,134.14,3.3545]
[1726217212491,11.43,134.17,134.13,3.3546]
[1726217215092,11.43,134.16,134.12,3.3549]
[1726217215296,11.43,134.15,134.1,1.3484]
[1726217215595,11.43,134.13,134.09,348.33473453]
[1726217217100,11.43,134.13,134.1,3.3554]
[1726217217402,11.43,134.12,134.09,336.90473453]
[1726217218794,11.43,134.12,134.09,3.3557]
[1726217220492,11.43,134.12,134.08,3.3559]
[1726217227491,5.07255189,134.13,134.08,3.3559]
[1726217227719,11.43,134.11,134.08,3.3559]
[1726217233204,1.4079,134.13,134.09,3.3556]
[1726217233406,11.43,134.12,134.09,3.3556]
[1726217239413,11.43,134.11,134.07,3.3561]
[1726217239618,11.43,134.1,134.06,1.3429]
[1726217240276,11.43,134.1,134.06,4.6991]
[1726217241626,11.43,134.09,134.06,1.3429]
[1726217241812,11.43,134.09,134.05,3.3566]
[1726217245312,11.43,134.08,134.05,3.3566]
[1726217247610,11.43,134.08,134.03,12.7813]
[1726217247611,11.43,134.08,134.04,3.3569]
[1726217247912,11.43,134.06,134.04,3.3569]
[1726217250309,11.43,134.06,134.01,3.72956654]
[1726217250511,11.43,134.06,134.01,15.15956654]
[1726217250812,11.43,134.06,134.03,3.3571]
[1726217251716,11.43,134.06,134.01,15.21405613]
[1726217252111,11.43,134.06,134.01,11.43]
[1726217252315,11.43,134.06,134.02,11.43]
[1726217252616,11.43,134.06,134.03,3.3571]
[1726217253916,11.43,134.06,134.02,11.43]
[1726217253917,11.43,134.06,134.01,15.22450623]
[1726217254320,11.43,134.06,134.02,3.3573]
[1726217255022,11.43,134.06,134.01,15.22450623]
[1726217255023,11.43,134.06,134.03,3.3572]
[1726217255724,11.43,134.06,134.02,3.3574]
[1726217256826,11.43,134.06,134.03,3.3572]
[1726217257030,11.43,134.05,134.03,3.3572]
[1726217260822,11.43,134.05,134.02,3.3574]
[1726217261427,11.43,134.05,134.03,3.3572]
[1726217261624,11.43,134.05,134.01,3.79450623]
[1726217262023,3.79516273,134.08,134.01,3.79450623]
[1726217262241,11.43,134.04,134.02,3.3574]
[1726217263329,11.43,134.04,134.01,7.06803811]
[1726217263830,11.43,134.04,134.02,3.3574]
[1726217266234,11.43,134.04,134.01,3.3576]
[1726217266932,11.43,134.04,134.01,7.01222927]
[1726217267236,11.43,134.04,134.01,3.3576]
[1726217267627,11.43,134.03,134.01,3.3576]
[1726217269552,116.52067776,134.11,134.01,3.3576]
[1726217269732,11.43,134.04,134.01,3.3576]
[1726217272631,11.43,134.04,134.02,3.3574]
[1726217273435,11.43,134.04,134.01,3.3576]
[1726217274139,11.43,134.04,134.02,3.3575]
[1726217274339,11.43,134.04,133.99,12.7624]
[1726217274728,11.43,134.04,134.02,3.3575]
[1726217276240,11.43,134.04,134.01,3.3576]
[1726217282569,11.43,134.04,133.98,172.33845216]
[1726217282739,11.43,134.04,133.98,183.76845216]
[1726217283339,11.43,134.04,134.01,3.3577]
[1726217284667,15.08750765,134.04,134.0,3.3578]
[1726217285636,11.43,134.03,134.0,3.3578]
[1726217286840,120.31556441,134.11,134.01,3.3575]
[1726217287049,11.43,134.04,133.98,172.33845216]
[1726217287242,11.43,134.02,133.98,172.33845216]
[1726217287786,11.43,134.02,134.0,3.3579]
[1726217294249,11.43,134.02,133.99,3.3581]
[1726217296855,11.43,134.02,133.99,3.3582]
[1726217297449,11.43,134.02,134.0,3.358]
[1726217299546,11.43,134.02,133.99,3.3581]
[1726217302161,11.43,134.02,134.0,3.358]
[1726217315866,11.43,134.05,133.99,11.43]
[1726217316115,4.0997,134.09,134.0,11.43]
[1726217316267,11.43,134.05,134.0,11.43]
[1726217316776,11.43,134.05,134.03,3.3571]
[1726217320769,4.0997,134.09,134.03,3.3571]
[1726217320960,11.43,134.06,134.04,3.357]
[1726217321163,11.43,134.06,134.0,11.43]
[1726217322478,11.43,134.05,134.0,11.43]
[1726217322867,11.43,134.05,134.03,3.3572]
[1726217327091,4.0997,134.09,134.03,3.357]
[1726217327392,11.43,134.05,134.03,3.357]
[1726217331900,4.0997,134.09,134.03,3.357]
[1726217332200,11.43,134.06,134.03,3.357]
[1726217332597,11.43,134.06,134.04,3.3569]
[1726217339403,11.43,134.06,134.03,3.3571]
[1726217340508,11.43,134.06,134.02,3.3573]
[1726217340707,11.43,134.05,134.02,3.3573]
[1726217341110,11.43,134.05,134.03,3.3572]
[1726217341415,11.43,134.06,134.03,3.3572]
[1726217349402,11.43,134.06,134.02,3.3575]
[1726217351016,4.0997,134.09,134.01,11.43]
[1726217351216,11.43,134.06,134.01,11.43]
[1726217351912,11.43,134.06,134.03,3.357]
[1726217352841,11.43,134.05,134.02,3.3574]
[1726217353915,4.0997,134.09,134.02,3.3574]
[1726217354118,11.43,134.06,134.02,3.3574]
[1726217356301,4.0997,134.09,134.02,3.3574]
[1726217356508,11.43,134.05,134.02,3.3574]
[1726217358518,11.43,134.06,134.02,3.3574]
[1726217359819,11.43,134.06,134.0,11.43]
[1726217359820,4.0997,134.09,134.03,3.3572]
[1726217360024,11.43,134.06,134.03,3.3572]
[1726217362716,4.0997,134.09,134.03,3.3572]
[1726217362916,11.43,134.06,134.03,3.3572]
[1726217363118,11.43,134.06,134.0,11.43]
[1726217364028,11.43,134.06,134.03,3.3571]
[1726217364526,11.43,134.06,134.01,11.43]
[1726217366828,11.43,134.06,134.03,3.357]
[1726217367530,11.43,134.06,134.04,3.357]
[1726217369617,11.43,134.06,134.03,3.3571]
[1726217373140,11.43,134.06,134.01,11.43]
[1726217374942,11.43,134.06,134.03,3.3571]
[1726217386950,4.0997,134.09,134.04,3.3569]
[1726217387251,11.43,134.07,134.04,3.3569]
[1726217389553,4.0997,134.09,134.05,3.3566]
[1726217389851,233.04022352,134.1,133.99,339.97308641]
[1726217389852,11.43,134.1,134.06,11.43]
[1726217390152,11.43,134.12,134.08,14.7858]
[1726217390353,11.43,134.13,134.09,11.43]
[1726217390659,244.41338795,134.14,134.1,3.3554]
[1726217390952,244.41338795,134.14,134.09,11.43]
[1726217391155,244.41338795,134.14,134.09,14.7856]
[1726217392165,244.41338795,134.14,134.09,11.43]
[1726217392942,244.41338795,134.14,134.09,14.7857]
[1726217393849,11.43,134.13,134.09,14.7857]
[1726217396553,232.98338795,134.14,134.1,3.3555]
[1726217396755,244.41338795,134.14,134.1,3.3555]
[1726217399555,11.43,134.13,134.09,3.3555]
[1726217401048,11.43,134.13,134.08,3.3559]
[1726217401653,11.43,134.13,134.08,14.7859]
[1726217403566,11.43,134.13,134.05,7.86407582]
[1726217403861,11.43,134.11,134.06,11.43]
[1726217404759,11.43,134.11,134.07,3.3561]
[1726217404961,11.43,134.11,134.07,14.7861]
[1726217406767,11.43,134.11,134.08,3.356]
[1726217406966,11.43,134.11,134.07,11.43]
[1726217407560,11.43,134.11,134.08,3.3559]
[1726217408063,14.1738,134.13,134.09,3.3556]
[1726217410955,2.7438,134.13,134.1,3.3553]
[1726217411463,2.7438,134.13,134.09,11.43]
[1726217411666,1.3882,134.13,134.11,3.3551]
[1726217413164,1.4327,134.17,134.12,3.355]
[1726217413472,11.43,134.16,134.12,3.355]
[1726217414263,12.8627,134.17,134.12,3.355]
[1726217414469,12.8627,134.17,134.13,11.43]
[1726217415069,12.8627,134.17,134.13,14.7846]
[1726217415269,12.8627,134.17,134.13,11.43]
[1726217415881,3.65873517,134.19,134.14,3.3545]
[1726217416065,1.3966,134.21,134.14,3.3545]
[1726217416265,5.11274204,134.21,134.14,11.43]
[1726217416572,11.43,134.19,134.14,11.43]
[1726217417370,11.43,134.19,134.14,14.7844]
[1726217418467,5.11274204,134.21,134.14,14.7844]
[1726217418668,11.43,134.18,134.14,14.7844]
[1726217419063,11.43,134.19,134.15,3.3542]
[1726217421873,5.11274204,134.21,134.15,3.3542]
[1726217422069,11.43,134.19,134.15,3.3542]
[1726217432776,15.208532,134.19,134.15,3.3542]
[1726217441986,15.208532,134.19,134.12,1.386]
[1726217442182,11.43,134.16,134.12,11.43]
[1726217442388,11.43,134.15,134.12,11.43]
[1726217442585,11.43,134.15,134.12,14.7849]
[1726217442991,11.43,134.15,134.11,11.43]
[1726217443191,11.43,134.15,134.11,14.7851]
[1726217443684,11.43,134.15,134.12,3.355]
[1726217444096,15.13580572,134.15,134.12,3.355]
[1726217444294,15.13580572,134.15,134.11,14.7851]
[1726217449586,15.13580572,134.15,134.11,3.3551]
[1726217451593,15.13580572,134.15,134.12,3.355]
[1726217451989,15.13580572,134.15,134.1,11.43]
[1726217452190,15.13580572,134.15,134.11,3.355]
[1726217452393,11.43,134.15,134.11,3.355]
[1726217452691,15.18522232,134.15,134.11,3.355]
[1726217456894,11.43,134.15,134.12,3.3549]
[1726217457201,11.43,134.15,134.1,11.43]
[1726217457503,15.20825378,134.15,134.1,11.43]
[1726217457695,15.20825378,134.15,134.11,3.355]
[1726217457895,15.20825378,134.15,134.1,11.43]
[1726217458804,15.20825378,134.15,134.12,3.3549]
[1726217459818,1.4178,134.17,134.13,3.3547]
[1726217460009,11.43,134.16,134.13,3.3547]
[1726217462905,11.43,134.15,134.09,168.4511007]
[1726217463107,11.43,134.15,134.1,11.43]
[1726217463808,11.43,134.15,134.12,3.3549]
[1726217464818,11.43,134.15,134.11,3.3551]
[1726217476926,5.13450521,134.17,134.12,3.3548]
[1726217477126,11.43,134.15,134.12,3.3548]
[1726217477725,5.13450521,134.17,134.11,3.3551]
[1726217477926,11.43,134.14,134.09,168.46234372]
[1726217478327,11.43,134.13,134.09,168.46234372]
[1726217478531,5.13450521,134.17,134.06,1.3671]
[1726217478532,11.43,134.1,134.06,1.3671]
[1726217479528,11.43,134.1,134.07,3.3561]
[1726217484033,11.43,134.08,134.02,5.17729282]
[1726217484236,11.43,134.08,134.03,11.43]
[1726217485136,11.43,134.08,134.05,3.3566]
[1726217485735,11.43,134.08,134.03,11.43]
[1726217485736,11.43,134.08,134.04,3.3569]
[1726217488035,11.43,134.07,134.04,3.3569]
[1726217489640,11.43,134.07,133.99,2.7723]
[1726217489641,11.43,134.06,134.03,3.3572]
[1726217498845,11.43,134.07,134.04,3.3568]
[1726217504049,11.43,134.07,134.03,3.3572]
[1726217504241,11.43,134.06,134.01,15.1470586]
[1726217504546,11.43,134.06,134.01,11.43]
[1726217504748,11.43,134.06,134.03,3.3572]
[1726217518758,1.3311,134.08,134.03,3.3572]
[1726217518949,11.43,134.05,134.03,3.3572]
[1726217526169,11.43,134.04,134.0,3.81438632]
[1726217526359,11.43,134.04,133.99,1.3318]
[1726217526558,2.6845,134.08,133.99,1.3318]
[1726217526559,11.43,134.02,133.99,1.3318]
[1726217526764,11.43,134.02,134.0,3.3579]
[1726217527274,11.43,134.02,133.99,3.3581]
[1726217527662,11.43,134.02,134.0,3.358]
[1726217538774,11.43,134.01,133.99,3.3581]
[1726217542888,11.43,134.01,134.0,3.358]
[1726217543082,2.8178,134.04,134.0,3.358]
[1726217543279,11.43,134.03,134.0,3.358]
[1726217544889,11.43,134.03,134.01,3.3577]
[1726217548093,11.43,134.02,133.96,3.76455779]
[1726217548281,11.43,134.02,133.97,11.43]
[1726217548478,11.43,134.02,133.97,15.1459286]
[1726217548681,11.43,134.01,133.97,3.3586]
[1726217548879,11.43,134.01,133.95,12.8186]
[1726217549085,11.43,134.01,133.95,1.3886]
[1726217549284,11.43,134.01,133.95,16.50279087]
[1726217549494,11.43,134.01,133.95,5.07279087]
[1726217549787,11.43,134.01,133.95,16.50279087]
[1726217549990,11.43,133.99,133.97,3.3585]
[1726217550290,11.43,133.99,133.95,5.07279087]
[1726217551791,11.43,133.98,133.95,5.07279087]
[1726217552183,11.43,133.99,133.96,3.359]
[1726217552995,11.43,133.99,133.97,3.3587]
[1726217553188,11.43,133.99,133.95,5.07279087]
[1726217553388,11.43,133.99,133.95,1.3886]
[1726217553584,11.43,133.99,133.95,16.58213428]
[1726217554690,11.43,133.99,133.97,3.3587]
[1726217555889,11.43,133.99,133.96,3.3589]
[1726217556186,11.43,133.99,133.88,18.91727066]
[1726217556394,11.43,133.98,133.93,11.43]
[1726217557092,11.43,133.98,133.95,3.3592]
[1726217558598,11.43,133.98,133.93,11.43]
[1726217558894,11.43,133.98,133.95,3.3592]
[1726217560501,1.376,134.03,133.96,3.3589]
[1726217560691,11.43,133.98,133.96,3.3589]
[1726217562304,11.43,133.98,133.95,3.3591]
[1726217562900,11.43,133.96,133.95,3.3591]
[1726217563097,11.43,133.96,133.94,3.3594]
[1726217564002,11.43,133.96,133.95,3.3592]
[1726217564798,11.43,133.96,133.94,3.3595]
[1726217566802,3.75242615,133.99,133.94,3.3595]
[1726217566998,11.43,133.96,133.94,3.3595]
[1726217567793,11.43,133.95,133.88,1.3456]
[1726217567998,11.43,133.93,133.88,1.3456]
[1726217568803,11.43,133.93,133.9,3.3604]